Cogmind - Beta 10.2 @@@ ROGUE MODE // 2022.03.13 @ 21:16:50 Player: Yanche Result: Destroyed by S-10 Pest with Light Assault Rifle Performance ------------- Evolutions (0) 0 Regions Visited (2) 400 Robots Destroyed (27) 135 Value Destroyed (521) 521 Prototype IDs (2) 40 Alien Tech Used (0) 0 Bonus (0) 0 TOTAL SCORE: 1096 Bonus ------- None Cogmind --------- Core Integrity 0/250 Matter 128/300 Energy 123/125 System Corruption 1% Temperature Cool (0) Movement Rolling (90) Ox1 Location -10/Mines Parts ------- > --- POWER (1) -------- Light Ion Engine > --- PROPULSION (2) --- Wheel Wheel > --- UTILITY (2) ------ Large Storage Unit ECM Suite > --- WEAPON (2) ------- EM Pulse Gun Improved Light Cannon > --- INVENTORY (10) --- Light Ion Engine Heat Sink Structural Scanner Terrain Scanner Terrain Scan Processor Light Assault Rifle Grenade Launcher Rocket Launcher Peak State ------------ > --- POWER ------------ Light Ion Engine > --- PROPULSION ------- Wheel Compact Wheel > --- UTILITY ---------- Large Storage Unit Integration Mediator > --- WEAPON ----------- Light Cannon Light Cannon > --- INVENTORY -------- Compact Wheel Structural Scanner Signal Interpreter EM Pulse Gun EM Pulse Gun Small Laser Light Cannon Improved Light Cannon Grenade Launcher [Rating: 9] Favorites ----------- Power Light Ion Engine Engine Light Ion Engine Propulsion Wheel Leg Aluminum Leg Wheel Wheel Utility Large Storage Unit Device ECM Suite Storage Large Storage Unit Weapon Light Cannon Energy Gun EM Pulse Gun Ballistic Gun Light Assault Rifle Ballistic Cannon Light Cannon Build | -11 -10 -10 ------- Run | Scr Mat Min Slots Evolved . | . . . Power . | . . . Propulsion . | . . . Utility . | . . . Weapon . | . . . Parts Attached 35 | 6 16 13 Power 7 | 1 4 2 Engine 7 | 1 4 2 Core . | . . . Reactor . | . . . Propulsion 8 | 2 2 4 Treads . | . . . Leg 1 | . . 1 Wheel 7 | 2 2 3 Hover . | . . . Flight . | . . . Utility 4 | 1 3 . Device 2 | . 2 . Storage 2 | 1 1 . Processor . | . . . Hackware . | . . . Protection . | . . . Artifact . | . . . Weapon 16 | 2 7 7 Energy Gun 3 | . . 3 Energy Cannon . | . . . Ballistic Gun 3 | 2 1 . Ballistic Cannon 10 | . 6 4 Launcher . | . . . Special Weapon . | . . . Impact Weapon . | . . . Slashing Weapon . | . . . Piercing Weapon . | . . . Special Melee Weapon . | . . . Unidentified Prototypes . | . . . Parts Lost 8 | . 1 7 Power 2 | . 1 1 Propulsion 2 | . . 2 Utility . | . . . Weapon 4 | . . 4 Highest Loss Streak 3 | . 1 3 Average Slot Usage (%) 95 | . 97 94 Engine 13 | . 13 14 Wheel 24 | . 28 22 Device 13 | . 13 14 Storage 14 | . 14 14 Energy Gun 2 | . . 4 Ballistic Gun 3 | . 8 . Ballistic Cannon 21 | . 18 22 Naked Turns . | . . . Heaviest Build 29 | 9 27 29 Greatest Support 26 | 26 26 26 Greatest Overweight (x) 8 | . 1 8 Average Overweight (x) . | . . 1 Largest Inventory Capacity 10 | 6 10 10 Average Capacity 9 | 5 8 10 Most Carried 10 | 2 10 10 Average Carried 8 | 1 7 8 Final Capacity 10 | 6 10 10 Final Carried 10 | 2 10 8 Class Distribution -------------------- 100% | Mutant Dominant Class ---------------- Mutant | -10/Materials Mutant | -10/Mines Resources | -11 -10 -10 ----------- Run | Scr Mat Min Matter Collected 832 | 260 216 356 Remotely . | . . . Salvage Created 551 | . 234 317 Parts 48 | . 24 24 Haulers Intercepted . | . . . Recyclers Shooed . | . . . Parts Field Recycled . | . . . Retrieved Matter . | . . . Parts Self-Destructed . | . . . Prevented . | . . . Kills | -11 -10 -10 ------- Run | Scr Mat Min Combat Hostiles Destroyed 23 | . 9 14 Melee 1 | . . 1 Guns 9 | . 5 4 Cannons 11 | . 4 7 AOE 1 | . . 1 Classes Destroyed 7 | . 4 3 Worker 1 | . . 1 Builder 2 | . . 2 Operator 2 | . 2 . Watcher 1 | . 1 . Swarmer 12 | . 6 6 Grunt 9 | . 3 6 Assembled 2 | . . 2 Best Kill Streak 3 | . 3 2 Combat Bots Only 3 | . 3 2 Max Kills in Single Turn 2 | . 2 2 Gunslinging . | . . . Exploded 1 | . . 1 Melee 1 | . . 1 Uniques/NPCs Destroyed . | . . . Combat | -11 -10 -10 -------- Run | Scr Mat Min Damage Taken 1129 | . 316 813 Core 256 | . 39 217 Absorbed by Shields . | . . . Core Remaining (%) 100 | 100 . . Volleys Fired 109 | . 35 74 Largest 2 | . 2 2 Hottest 79 | . 70 79 Shots Fired 210 | . 70 140 Gun 79 | . 46 33 Cannon 131 | . 24 107 Launcher . | . . . Special . | . . . Kinetic 177 | . 70 107 Thermal . | . . . Explosive . | . . . Electromagnetic 33 | . . 33 Robot Hit Streak 15 | . 15 11 Robot Miss Streak 7 | . 7 4 Penetration Max . | . . . Secondary Targets . | . . . Shots Hit Robots 83 | . 35 48 Core Hits 43 | . 19 24 Critical Hits . | . . . Critical Kills . | . . . Critical Parts Destroyed . | . . . Melee Attacks . | . . . Impact . | . . . Slashing . | . . . Piercing . | . . . Sneak Attacks . | . . . Combat Hostiles . | . . . Follow-up Attacks . | . . . Damage Inflicted 1264 | . 380 884 Guns 448 | . 201 247 Cannons 723 | . 179 544 Explosions 53 | . . 53 Melee . | . . . Ramming 40 | . . 40 Kinetic 924 | . 380 544 Thermal 53 | . . 53 Explosive . | . . . Electromagnetic 247 | . . 247 Impact . | . . . Slashing . | . . . Piercing . | . . . Highest Corruption 1 | . 1 1 Average Corruption 1 | . 1 1 Corruption Purged . | . . . Effects 1 | . . 1 Data Loss (minor) 1 | . . 1 Overload Shots . | . . . Overflow Damage 23 | . 10 13 Projectiles 23 | . 10 13 Explosions . | . . . Melee . | . . . Knockbacks 13 | . 1 12 Impact . | . . . Kinetic 12 | . 1 11 Secondary 1 | . . 1 Self-Inflicted Damage 44 | . . 44 Shots 1 | . . 1 Rammed 7 | . . 7 Targets Rammed 7 | . . 7 Kicked . | . . . Crushed . | . . . Highest Temperature 99 | . 54 99 Average Temperature 19 | . 15 20 Received Heat Transfer 306 | . 87 219 Siege Activations . | . . . Robots Corrupted . | . . . Combat Hostiles . | . . . Parts Fried . | . . . Impact Corruptions . | . . . Robots Melted . | . . . Combat Hostiles . | . . . Parts Melted . | . . . Heat Transferred . | . . . Parts Sabotaged . | . . . Parts Stolen . | . . . Parts Stripped . | . . . Power Chain Reactions 1 | . . 1 Missiles Intercepted . | . . . Alert | -11 -10 -10 ------- Run | Scr Mat Min Peak Influence 330 | . 330 287 Initial 97 | . . 97 Average 184 | . 156 207 Maximum Alert Level 1 | . 1 1 Low Security (%) 50 | 100 80 32 Level 1 49 | . 19 67 Level 2 . | . . . Level 3 . | . . . Level 4 . | . . . Level 5 . | . . . High Security . | . . . Max Security . | . . . Squads Dispatched 3 | . 3 . Investigation 1 | . 1 . Extermination . | . . . Reinforcement 2 | . 2 . Assault . | . . . Garrison . | . . . Intercept . | . . . Construction Impeded . | . . . Haulers Reinforced . | . . . Stealth | -11 -10 -10 --------- Run | Scr Mat Min Distress Signals 4 | . 3 1 Communications Jammed . | . . . Distress Signals . | . . . Times Spotted 52 | . 22 30 Peak Tracking Total 5 | . 5 5 Tactical Retreats 12 | . 4 8 Traps | -11 -10 -10 ------- Run | Scr Mat Min Traps Triggered 5 | . 5 . Indirectly . | . . . Trap Hack Attempts . | . . . Triggered . | . . . Disarmed . | . . . Reprogrammed . | . . . Reused . | . . . Traps Extracted . | . . . Installed . | . . . Triggered . | . . . Machines | -11 -10 -10 ---------- Run | Scr Mat Min Machines Disabled 1 | . 1 . Max in Single Turn 1 | . 1 . Machines Sabotaged . | . . . Garrisons Compromised . | . . . Overloaded Fab Kills . | . . . Fab Network Shutdowns . | . . . Hacking | -11 -10 -10 --------- Run | Scr Mat Min Machines Accessed 3 | . 3 . Terminals 3 | . 3 . Fabricators . | . . . Repair Stations . | . . . Recycling Units . | . . . Scanalyzers . | . . . Garrison Access . | . . . Total Hacks 9 | . 9 . Successful 2 | . 2 . Failed 7 | . 7 . Catastrophic . | . . . Database Lockouts . | . . . Manual . | . . . Terminals 9 | . 9 . Fabricators . | . . . Repair Stations . | . . . Recycling Units . | . . . Scanalyzers . | . . . Garrison Access . | . . . Terminal Hacks 2 | . 2 . Prototype ID Bank 1 | . 1 . Emergency Access Points 1 | . 1 . Fabricator Hacks . | . . . Repair Station Hacks . | . . . Recycling Unit Hacks . | . . . Scanalyzer . | . . . Garrison Access Hacks . | . . . Unauthorized Hacks . | . . . Terminals . | . . . Fabricators . | . . . Repair Stations . | . . . Recycling Units . | . . . Scanalyzers . | . . . Garrison Access . | . . . Data Cores Recovered . | . . . Used . | . . . Hacking Detections 3 | . 3 . Full Trace Events 1 | . 1 . Feedback Events . | . . . Feedback Blocked . | . . . Robot Schematics Acquired . | . . . Robots Built . | . . . Matter . | . . . Time . | . . . Total Robot Build Rating . | . . . Part Schematics Acquired . | . . . Parts Built . | . . . Matter . | . . . Time . | . . . Total Part Build Rating . | . . . Parts Repaired . | . . . Time . | . . . Parts Recycled . | . . . Recycled Matter . | . . . Retrieved Matter . | . . . Retrieved Components . | . . . Parts Scanalyzed . | . . . Part Schematics Acquired . | . . . Parts Damaged . | . . . Bothacking | -11 -10 -10 ------------ Run | Scr Mat Min Used RIF Installer . | . . . Robots Hacked . | . . . Non-combat . | . . . Combat . | . . . Robot Hacks Applied . | . . . Relay Couplers Released . | . . . Robots Rewired . | . . . Allies Hacked . | . . . Hacks Repelled . | . . . Allies | -11 -10 -10 -------- Run | Scr Mat Min Total Allies . | . . . Largest Group . | . . . Highest-Rated Group . | . . . Highest-Rated Ally . | . . . Total Orders . | . . . Ally Attacks . | . . . Total Damage . | . . . Kills . | . . . Allies Corrupted . | . . . Allies Melted . | . . . Intel | -11 -10 -10 ------- Run | Scr Mat Min Robot Analysis Total . | . . . Derelict Logs Recovered 1 | . . 1 Drone Launches . | . . . Drone Recoveries . | . . . Exploration | -11 -10 -10 ------------- Run | Scr Mat Min Turns Passed 1628 | 34 578 1016 Spaces Moved 1127 | 27 419 681 Core 9 | 1 . 8 Treads . | . . . Legs 8 | . . 8 Wheels 1110 | 26 419 665 Hover . | . . . Flight . | . . . Fastest Speed 50 | 50 90 90 Average Speed 100 | 85 96 102 Slowest Speed 450 | 90 100 450 Overloaded Moves . | . . . Propulsion Burnouts . | . . . Robots Hopped . | . . . Cave-ins Triggered . | . . . Exploration Rate (%) 53 | 3 67 90 Regions Visited 2 Branch Regions 1 Pre-discovered Areas . | . . . Known Exits Taken . | . . . Unknown Exits Taken 2 | 1 1 . Scrap Searched . | . . . Spaces Dug . | . . . Terrain Destroyed 12 | . . 12 Melee . | . . . Projectile 2 | . . 2 AOE 10 | . . 10 Terrain Rammed 1 | . . 1 Walls Destroyed . | . . . Machines Disabled . | . . . Actions | -11 -10 -10 --------- Run | Scr Mat Min Total 1424 | 34 532 858 Wait 107 | . 38 69 Move 1125 | 26 418 681 Hop . | . . . Pick Up 23 | 2 15 6 Fast Attach 17 | 6 7 4 Attach 12 | . 4 8 Detach 2 | . . 2 Swap 6 | . 5 1 Drop 15 | . 10 5 Fire 109 | . 35 74 Melee . | . . . Ram 8 | . . 8 Kick . | . . . Crush . | . . . Escape Stasis . | . . . Rewire . | . . . Trap . | . . . Miscellaneous . | . . . Route ------- -11/Scrapyard -10/Materials (discovered 3 exits: [*Mat] / [*Min x2]) -10/Mines (discovered 2 exits: [*Mat x2]) History --------- Turn | Location | Event 18 | -11/Scrapyard | Discovered new exit (range 16) 35 | -11/Scrapyard | Entered Materials 165 | -10/Materials | Discovered new exit (range 7) 248 | -10/Materials | Discovered new exit (range 10) 317 | -10/Materials | Build established: Mutant 526 | -10/Materials | Discovered new exit (range 6) 613 | -10/Materials | Entered Mines 769 | -10/Mines | Received a Rocket Launcher from a helpful Derelict 789 | -10/Mines | Discovered new exit (range 8) 980 | -10/Mines | Discovered new exit (range 13) 1153 | -10/Mines | Lost 3 parts (1n2w) 1154 | -10/Mines | Excavation squad dispatched 1154 | -10/Mines | A large section of the Mines collapsed 1350 | -10/Mines | Core integrity fell below 50% 1404 | -10/Mines | Core integrity fell below 20% 1629 | -10/Mines | Destroyed by S-10 Pest with Light Assault Rifle Last Messages --------------- T-07 Excavator is excavating. Acquired Terrain Scan Processor. G-47 Trooper knocked back. Chain reaction triggered in Lgt. Nuclear Core. G-47 Trooper destroyed. Lgt. Cannon destroyed. Destroyed Lgt. Cannon. Acquired 27 matter. G-34 Mercenary destroyed. Acquired 38 matter. S-10 Pest knocked back. S-10 Pest misfires. S-10 Pest destroyed. Acquired 12 matter. Acquired Lgt. Assault Rifle. S-10 Pest knocked back. S-10 Pest destroyed. K-01 Serf collects debris. Acquired 16 matter. K-01 Serf collects debris. Map ----- +----------------------------------------------------+ | # #????????#### ###??????## #?# " * = | | # #???????????## ##???????## " ###""""####### | | # #????????????## ##????????# "###?????# | | # #?????????????#####????????# " # #???# | | # #???????????????????????# " # #???# | | # #??????????????????????# " " = "### #???# | | # ####???????????????????# ## #####?# #??## | | #???????????????????# " #?# ####????# ??## | | #### #???????????????????## #??# #???????# ### | | ?????#????????????????????##??## ##??????# | | ??????????????????????????????#"# ##?????# | | ???????????????"??????????????# ## ##????#### | | ??????????????? ??????????????# ### #???????# | | ??????????????? ??????????????##### #???????# = | | ??????< #?????? ?????????????# #"" #???????# | | ## #??????# ?????????????# """ #??????## | | #??????# ?????????????#######??????# | | ## #??# ????????????????????????## | | ?????? ### #??# ????????????????????????#" | | ??????????# #### ????????????????????????### | | ??????????? t #####?????????????????????# | | ???????????????# s ##????????????????????# | | ???????????????# s #????????????????????## | | ???????????????## ##???????????????????## | | ##??????????????# ######????????????### | | #??????????????## @ #???????????## | | #???????????????## #### #???????????# | | #????????????????# ##??# #???????????# | | #????????????????## ##???# #??????????## | | ##############????####????# ############ | | #???####?????# | | ############# #??## ##????# | | ????????????# #### ##################### | | ????????????# ## ##?????????????## | | ???????????## ####???????????# | | ???????????# ## ##??????????## | | ??????????## #### #???????????## ### | | ?????????## ##??## ### ##??????????#[#?# | | ????????## #????###### #??# ##????????# #?? | | ????????# ##?????????# #???# #?########=### | | ???????## #??????????# ##???# ### | | ???????# #?????????## ###### # #### !! | | ???????# #????????## #### ## #### !!!! | | ???????# #????????# #?## ## ## !!! | | ???????# #????????# ## ### # !!!! | | ???????## ##????????# ## # | | ????????####????????## ## ### | | #??????????????????## ###### ##?# | | ##????????????????## """ #????# ##??## | | ##???????????????# """ #????## #????## | +----------------------------------------------------+ Best States ------------- Heat Dissipation 25 Energy Generation 10 Energy Capacity 250 Matter Stores 300 Matter Capacity 300 Sight Range 16 Terrain Scan Density 10 ECM Strength 1 Evasion (%) 44 Item Schematics ----------------- None Robot Schematics ------------------ None Fabricated ------------ Nothing Alien Tech Used ----------------- None Achievements -------------- None Challenges ------------ None Game ------ Seed SmartbombFocalNukerbomber Manual? 0 Play Time 00:22:31 Cumulative 54.5 hours Start 2022.03.13 @ 20:56:57 End 2022.03.13 @ 21:16:50 Sessions 1 Manual Loads 0 Difficulty Rogue Special Mode None Game No. 45 Rogue 35 Adventurer 0 Explorer 10 Win Type - Total 0 Types 0/0/0/0/0/0/0/0/0 Lore% 39 Gallery% 41 Achievement% 27 Wizard Run 0 Options --------- ASCII 0 Keyboard 0 Movement Numpad Keybinds 0 Fullscreen 1 Font 18/SmallcapsGlow Map View 76x50 Tactical HUD 0 Map Filters NONE Filters NONE Steam 1 RUN: d1e32887-12b6-480c-9774-dcacc71d5d0a